bitfinex-derivatives/quotes_BTCF0:USTF0_20240925
["timestamp","ask_amount","ask_price","bid_price","bid_amount"]
[1727272765696,0.22766709,63775.0,63774.0,0.3732]
[1727272765895,0.14,63779.0,63774.0,0.3732]
[1727272766106,0.3608,63782.0,63778.0,0.0004]
[1727272766402,0.0037,63787.0,63786.0,0.078391]
[1727272766590,0.0004,63789.0,63788.0,0.078388]
[1727272766797,0.0004,63789.0,63788.0,0.078788]
[1727272766798,0.08826415,63789.0,63788.0,0.078788]
[1727272767100,0.078787,63789.0,63788.0,0.078388]
[1727272767805,0.079787,63789.0,63788.0,0.079388]
[1727272769100,0.079787,63789.0,63788.0,0.080388]
[1727272769101,0.080787,63789.0,63788.0,0.080388]
[1727272769302,0.0024,63789.0,63788.0,0.080388]
[1727272776104,0.080787,63789.0,63788.0,0.080388]
[1727272776705,0.080787,63789.0,63788.0,0.002]
[1727272777603,0.0024,63789.0,63788.0,0.080388]
[1727272778119,0.0024,63789.0,63788.0,0.298776]
[1727272778611,0.0024,63789.0,63788.0,0.898776]
[1727272778910,0.0024,63789.0,63788.0,1.369096]
[1727272779612,0.0024,63789.0,63788.0,1.54522818]
[1727272780008,0.0037,63796.0,63795.0,0.078379]
[1727272780312,0.078374,63800.0,63799.0,0.078375]
[1727272780546,0.07808603,63802.0,63801.0,0.078372]
[1727272780699,0.07808603,63802.0,63801.0,0.078772]
[1727272780923,0.08048603,63803.0,63802.0,0.078371]
[1727272781104,0.16805949,63803.0,63802.0,0.078771]
[1727272781500,0.15885603,63803.0,63802.0,0.078771]
[1727272782215,0.10618223,63803.0,63802.0,0.078771]
[1727272783213,0.10618223,63803.0,63802.0,0.079771]
[1727272783620,0.10618223,63803.0,63802.0,0.080771]
[1727272785821,0.08077,63803.0,63802.0,0.080771]
[1727272787214,0.0024,63803.0,63802.0,0.080771]
[1727272787429,0.0024,63803.0,63802.0,0.441571]
[1727272793712,0.02781173,63803.0,63802.0,0.441571]
[1727272793916,0.02781173,63803.0,63802.0,0.080771]
[1727272794625,0.06990124,63803.0,63802.0,0.080771]
[1727272797316,0.14827124,63803.0,63802.0,0.080771]
[1727272797625,0.25809359,63803.0,63802.0,0.080771]
[1727272797920,0.25810533,63803.0,63802.0,0.080771]
[1727272798815,0.14828298,63803.0,63802.0,0.080771]
[1727272799913,0.14828298,63803.0,63802.0,0.0024]
[1727272800434,0.14828298,63803.0,63802.0,0.080771]
[1727272800723,0.06991298,63803.0,63802.0,0.519942]
[1727272801026,0.0024,63803.0,63802.0,0.519942]
[1727272801720,0.0024,63803.0,63802.0,0.959113]
[1727272801916,0.09471461,63811.0,63802.0,0.959113]
[1727272801917,0.07826218,63811.0,63806.0,0.078366]
[1727272802122,0.07826218,63814.0,63813.0,0.078357]
[1727272802423,0.07823354,63818.0,63813.0,0.1408]
[1727272802617,0.07823354,63818.0,63810.0,0.7224]
[1727272802618,0.07823354,63819.0,63818.0,0.078351]
[1727272802819,0.222036,63831.0,63817.0,0.5016]
[1727272802820,0.07823354,63822.0,63820.0,0.078349]
[1727272803017,0.07823354,63826.0,63825.0,0.078343]
[1727272803212,0.07823354,63831.0,63821.0,0.5016]
[1727272803415,0.06252357,63828.0,63827.0,0.07834]
[1727272803631,0.07823354,63832.0,63829.0,0.078337]
[1727272803930,0.21823354,63830.0,63821.0,0.0008]
[1727272804118,0.14,63822.0,63821.0,0.0008]
[1727272804824,0.078346,63822.0,63821.0,0.0008]
[1727272805127,0.218346,63822.0,63821.0,0.0008]
[1727272805425,0.22775611,63822.0,63821.0,0.0008]
[1727272805725,0.22775611,63822.0,63821.0,0.0018]
[1727272805925,0.22775611,63822.0,63821.0,0.0028]
[1727272807130,0.078351,63818.0,63814.0,0.3608]
[1727272807428,0.078355,63815.0,63814.0,0.3608]
[1727272808328,0.078364,63808.0,63806.0,0.3608]
[1727272808625,0.5008,63818.0,63806.0,0.3608]
[1727272808626,0.14,63807.0,63806.0,0.439166]
[1727272808823,0.16540956,63807.0,63806.0,0.439166]
[1727272809027,0.02540956,63807.0,63806.0,0.078366]
[1727272809227,0.07813426,63807.0,63806.0,0.078366]
[1727272809425,0.07813426,63808.0,63803.0,0.3608]
[1727272809734,0.14,63811.0,63803.0,0.3608]
[1727272809735,0.15650126,63805.0,63803.0,0.3608]
[1727272809937,0.07813426,63805.0,63803.0,0.3608]
[1727272810132,0.07813426,63806.0,63803.0,0.3608]
[1727272810424,0.218362,63810.0,63803.0,0.3608]
[1727272810425,0.07814101,63807.0,63805.0,0.1408]
[1727272810625,0.06250787,63808.0,63807.0,0.078365]
[1727272810825,0.3608,63818.0,63808.0,0.078364]
[1727272810826,0.06250787,63809.0,63808.0,0.078364]
[1727272811026,0.06250787,63809.0,63808.0,0.079164]
[1727272811231,0.06250787,63811.0,63810.0,0.078361]
[1727272811529,0.06250787,63811.0,63810.0,0.439961]
[1727272811724,0.06250787,63811.0,63810.0,0.439161]
[1727272812523,0.06250787,63812.0,63811.0,0.07836]
[1727272812830,0.06250787,63812.0,63811.0,0.07916]
[1727272813133,0.07814101,63816.0,63815.0,0.078355]
[1727272813335,0.07814101,63816.0,63815.0,0.079155]
[1727272814431,0.07814101,63817.0,63816.0,0.078354]
[1727272814634,0.07814101,63817.0,63816.0,0.439954]
[1727272815235,0.07814101,63818.0,63817.0,0.078352]
[1727272815440,0.06247533,63818.0,63817.0,0.61008]
[1727272815636,0.06247533,63819.0,63818.0,0.078351]
[1727272815842,0.09391461,63828.0,63827.0,0.07834]
[1727272815843,0.0037,63828.0,63827.0,0.07834]
[1727272816140,0.06247533,63834.0,63833.0,0.078333]
[1727272816335,0.06245155,63839.0,63838.0,0.078327]
[1727272816542,0.06245155,63840.0,63838.0,0.0008]
[1727272816737,0.14077455,63841.0,63840.0,0.078324]
[1727272817040,0.14077455,63841.0,63840.0,0.439924]
[1727272817226,0.12,63842.0,63840.0,0.439124]
[1727272817227,0.18245155,63842.0,63840.0,0.439124]
[1727272817432,0.18245155,63842.0,63841.0,0.079123]
[1727272818138,0.26077355,63842.0,63841.0,0.079123]
[1727272818445,0.198322,63842.0,63841.0,0.079123]
[1727272818635,0.199322,63842.0,63841.0,0.080123]
[1727272819140,0.200322,63842.0,63841.0,0.081123]
[1727272819535,0.122,63842.0,63841.0,0.081123]
[1727272823445,0.200322,63842.0,63841.0,0.081123]
[1727272823638,0.200322,63842.0,63839.0,0.0008]
[1727272823946,0.07833,63835.0,63834.0,0.078332]
[1727272824139,0.21833,63835.0,63834.0,0.078332]
[1727272824337,0.21833,63835.0,63827.0,0.3608]
[1727272824338,0.0623364,63837.0,63836.0,0.078329]
[1727272824538,0.0623364,63837.0,63836.0,0.439129]
[1727272825044,0.0623364,63837.0,63836.0,0.439929]
[1727272825237,0.1406644,63837.0,63836.0,0.439929]
[1727272825541,0.0623364,63837.0,63836.0,0.439929]
[1727272825849,0.0623364,63837.0,63836.0,0.440929]
[1727272825850,0.0633364,63837.0,63836.0,0.440929]
[1727272826664,0.0633484,63837.0,63836.0,0.441929]
[1727272826949,0.06534839,63837.0,63836.0,0.441929]
[1727272827244,0.06534685,63837.0,63836.0,0.441929]
[1727272827637,0.003,63837.0,63836.0,0.441929]
[1727272828639,0.003,63837.0,63836.0,1.590218]
[1727272828834,0.003,63837.0,63836.0,1.69325414]
[1727272829639,0.003,63837.0,63836.0,1.77158314]
[1727272829849,0.06539238,63837.0,63836.0,1.77158314]
[1727272830044,0.003,63837.0,63836.0,1.77158314]
[1727272830649,0.0008,63842.0,63841.0,0.156646]
[1727272830847,0.02619473,63842.0,63841.0,0.578346]
[1727272831150,0.02619473,63842.0,63841.0,1.82837541]
[1727272831343,0.0008,63842.0,63841.0,1.75005241]
[1727272831647,0.0008,63842.0,63841.0,1.22837541]
[1727272831849,0.0028,63842.0,63841.0,1.15105241]
[1727272832042,0.09638542,63842.0,63841.0,0.440923]
[1727272832746,0.20010215,63842.0,63841.0,0.080123]
[1727272833049,0.24651673,63842.0,63841.0,0.0028]
[1727272833448,0.34010215,63842.0,63841.0,0.0028]
[1727272834137,0.20010215,63842.0,63841.0,0.0028]
[1727272834334,0.10651673,63842.0,63841.0,0.0028]
[1727272835446,0.078328,63837.0,63830.0,0.078336]
[1727272835640,0.078334,63832.0,63828.0,0.3608]
[1727272835875,0.21796102,63832.0,63828.0,0.3608]
[1727272836041,0.15629902,63829.0,63826.0,0.00235011]
[1727272836348,0.21834,63827.0,63826.0,0.00235011]
[1727272836550,0.28675458,63827.0,63826.0,0.00235011]
[1727272836753,0.307039,63827.0,63826.0,0.00235011]
[1727272836940,0.385379,63827.0,63826.0,1e-08]
[1727272837140,0.078351,63818.0,63817.0,0.0037]
[1727272837346,0.078351,63818.0,63815.0,0.3608]
[1727272837347,0.078354,63816.0,63815.0,0.3608]
[1727272837655,0.07836,63811.0,63808.0,0.0037]
[1727272837857,0.0593,63817.0,63807.0,0.439164]
[1727272837858,0.14,63809.0,63807.0,0.3608]
[1727272838073,0.07800458,63808.0,63807.0,0.3608]
[1727272838258,0.02540751,63808.0,63807.0,0.439165]
[1727272838457,0.07800832,63808.0,63807.0,0.439165]
[1727272838768,0.07800832,63808.0,63807.0,1.82130001]
[1727272838947,0.10982235,63823.0,63807.0,1.74293501]
[1727272838948,0.078349,63820.0,63807.0,1.74293501]
[1727272839157,0.14,63817.0,63815.0,0.0008]
[1727272839456,0.14,63817.0,63816.0,0.0008]
[1727272839652,0.078354,63816.0,63815.0,0.0008]
[1727272840156,0.078362,63809.0,63808.0,0.0037]
[1727272840368,0.078362,63809.0,63795.0,0.00235093]
[1727272840369,0.078368,63804.0,63799.0,0.0037]
[1727272840655,0.14,63809.0,63795.0,0.40970326]
[1727272840656,0.078373,63801.0,63795.0,0.36315093]
[1727272840848,0.14,63796.0,63795.0,0.44152993]
[1727272841580,0.078376,63798.0,63795.0,0.439179]
[1727272841759,0.14,63799.0,63796.0,0.078378]
[1727272841950,0.14,63799.0,63798.0,0.0008]
[1727272842257,0.218375,63799.0,63798.0,0.0008]
[1727272844142,0.218375,63799.0,63798.0,0.0028]
[1727272844360,0.078375,63799.0,63798.0,0.0028]
[1727272844549,0.0607,63803.0,63798.0,0.0028]
[1727272844754,0.0008,63804.0,63803.0,0.07837]
[1727272845050,0.0627,63808.0,63803.0,0.1408]
[1727272845270,0.078361,63811.0,63807.0,0.3616]
[1727272845458,0.078361,63811.0,63809.0,0.078361]
[1727272845647,0.07039211,63815.0,63811.0,0.07836]
[1727272845847,0.14874711,63815.0,63814.0,0.0008]
[1727272846052,0.139555,63815.0,63814.0,0.0008]
[1727272846262,0.279555,63815.0,63814.0,0.0008]
[1727272847460,0.282555,63815.0,63814.0,0.0028]
[1727272849661,1.27432,63815.0,63804.0,0.078367]
[1727272849860,0.07837,63803.0,63802.0,0.0008]
[1727272850659,0.14,63804.0,63798.0,0.078376]
[1727272850855,0.07837,63803.0,63794.0,0.3608]
[1727272851053,0.14,63804.0,63794.0,0.3608]
[1727272851054,0.078377,63798.0,63794.0,0.3608]
[1727272851362,0.002,63803.0,63802.0,0.078371]
[1727272851668,0.002,63803.0,63802.0,0.079171]
[1727272852947,0.08037,63803.0,63802.0,0.0008]
[1727272853151,0.08337,63803.0,63802.0,0.0008]
[1727272853666,0.08137,63803.0,63802.0,0.0008]
[1727272854361,0.08437,63803.0,63802.0,0.0008]
[1727272854664,0.08437,63803.0,63802.0,0.079171]
[1727272855664,0.006,63803.0,63802.0,0.079171]
[1727272856172,0.08437,63803.0,63802.0,0.079171]
[1727272856548,0.006,63803.0,63802.0,0.079171]
[1727272856950,0.08437,63803.0,63802.0,0.079171]
[1727272859361,0.006,63803.0,63802.0,0.079171]
[1727272860568,0.08437,63803.0,63802.0,0.079171]
[1727272860868,0.006,63803.0,63802.0,0.079171]
[1727272861188,0.006,63803.0,63802.0,0.375913]
[1727272861375,0.3608,63812.0,63811.0,0.07836]
[1727272861666,0.3608,63812.0,63811.0,0.07876]
[1727272864157,0.579159,63812.0,63811.0,0.07876]
[1727272864361,0.579159,63812.0,63811.0,0.07976]
[1727272864956,0.579159,63812.0,63811.0,0.08076]
[1727272865159,0.5008,63812.0,63811.0,0.08076]
[1727272865357,0.5008,63812.0,63811.0,0.07976]
[1727272865358,0.3608,63812.0,63811.0,0.07976]
[1727272866570,0.00912516,63818.0,63812.0,0.078359]
[1727272866760,0.1407533,63821.0,63820.0,0.078349]
[1727272867070,0.078348,63821.0,63820.0,0.078749]
[1727272867372,0.00930217,63821.0,63817.0,0.0004]
[1727272867576,0.4240053,63824.0,63820.0,0.078349]
[1727272867871,0.5015493,63824.0,63823.0,0.0004]
[1727272868371,0.44868001,63824.0,63823.0,0.078745]
[1727272868766,0.44868001,63824.0,63823.0,0.0004]
[1727272868961,0.72956188,63824.0,63823.0,0.0004]
[1727272869165,0.73498602,63824.0,63823.0,0.0004]
[1727272869356,0.73498602,63824.0,63823.0,0.0014]
[1727272869757,0.65664202,63824.0,63823.0,0.0014]
[1727272869966,0.65664202,63824.0,63823.0,0.0024]
[1727272870456,0.73498602,63824.0,63823.0,0.0024]
[1727272871095,1.09578602,63824.0,63823.0,0.0024]
[1727272871379,1.09578602,63824.0,63814.0,0.0037]
[1727272871380,0.15671,63815.0,63814.0,0.0037]
[1727272871575,0.078359,63812.0,63805.0,0.082066]
[1727272871769,0.14,63806.0,63805.0,0.078366]
[1727272872077,0.078368,63804.0,63803.0,0.00235097]
[1727272872263,0.15694755,63804.0,63803.0,0.00235097]
[1727272872868,0.16626025,63804.0,63803.0,0.00235097]
[1727272873062,0.14794755,63804.0,63803.0,0.00235097]
[1727272873460,0.14794755,63804.0,63803.0,0.08072097]
[1727272874173,0.14794755,63804.0,63803.0,0.00235097]
[1727272874764,0.070768,63804.0,63803.0,0.00235097]
[1727272875068,0.09617832,63804.0,63803.0,0.01335097]
[1727272875774,0.09717832,63804.0,63803.0,0.00235097]
[1727272876164,0.071768,63804.0,63803.0,0.00235097]
[1727272876662,0.078377,63797.0,63796.0,0.0037]
[1727272876866,0.078377,63797.0,63787.0,0.07785118]
[1727272876867,0.156758,63795.0,63794.0,0.04655466]
[1727272877177,0.078388,63788.0,63787.0,0.06216002]
[1727272877378,0.078391,63786.0,63785.0,0.06216002]
[1727272877570,0.078391,63786.0,63783.0,0.0645116]
[1727272877571,0.078791,63786.0,63783.0,0.0645116]
[1727272877778,0.078393,63784.0,63783.0,0.00235158]
[1727272877995,0.157186,63784.0,63783.0,0.00235158]
[1727272878289,0.078393,63784.0,63783.0,0.00235158]
[1727272878796,0.078393,63784.0,63783.0,0.01235158]
[1727272879375,0.001,63786.0,63783.0,0.01235158]
[1727272879580,0.001,63786.0,63785.0,0.0004]
[1727272879786,0.079391,63786.0,63785.0,0.0004]
[1727272880288,0.06356898,63786.0,63765.0,0.14057602]
[1727272880476,0.1404,63766.0,63760.0,0.078422]
[1727272880676,0.0004,63761.0,63758.0,0.3608]
[1727272880890,0.0004,63761.0,63760.0,0.078422]
[1727272881897,0.0014,63761.0,63760.0,0.078422]
[1727272882397,0.0004,63761.0,63760.0,0.078422]
[1727272882590,0.0014,63761.0,63760.0,0.092422]
[1727272882991,0.1414,63761.0,63760.0,0.092422]
[1727272883395,0.0014,63761.0,63760.0,0.092422]
[1727272884808,0.0024,63761.0,63760.0,0.093422]
[1727272885009,0.0014,63761.0,63760.0,0.079422]
[1727272885192,0.0024,63761.0,63760.0,0.079422]
[1727272887396,0.080821,63761.0,63760.0,0.001]
[1727272887599,0.0024,63761.0,63760.0,0.079422]
[1727272889092,0.0024,63761.0,63760.0,0.440222]
[1727272889298,0.0024,63761.0,63760.0,0.658644]
[1727272889504,0.0004,63766.0,63765.0,0.078416]
[1727272889700,0.0004,63766.0,63765.0,0.078816]
[1727272890707,0.078409,63771.0,63770.0,0.07841]
[1727272891008,0.078409,63771.0,63770.0,0.07881]
[1727272891808,0.4238,63777.0,63770.0,0.07881]
[1727272891809,0.14,63780.0,63770.0,0.61284]
[1727272892006,0.14,63785.0,63775.0,0.3608]
[1727272892207,0.14,63785.0,63779.0,0.0004]
[1727272892710,0.14,63781.0,63779.0,0.0004]
[1727272893097,0.0646,63791.0,63779.0,0.0004]
[1727272893098,0.14,63785.0,63779.0,0.0004]
[1727272893406,0.14,63785.0,63784.0,0.0004]
[1727272894010,0.218392,63785.0,63784.0,0.078793]
[1727272894206,0.218392,63785.0,63784.0,0.0004]
[1727272894407,0.585192,63785.0,63784.0,0.0004]
[1727272894727,0.224392,63785.0,63784.0,0.0004]
[1727272895300,0.229392,63785.0,63784.0,0.0014]
[1727272895497,0.235392,63785.0,63784.0,0.0014]
[1727272896101,0.240392,63785.0,63784.0,0.0024]
[1727272896406,0.601192,63785.0,63784.0,0.0024]
[1727272896611,0.078398,63780.0,63779.0,0.0004]
[1727272896836,0.218398,63780.0,63779.0,0.0004]
[1727272897001,0.297196,63780.0,63779.0,0.0004]
[1727272897812,0.23428548,63780.0,63779.0,0.001]
[1727272898806,0.224798,63780.0,63779.0,0.001]
[1727272899518,0.230798,63780.0,63779.0,0.002]
[1727272902305,0.230798,63780.0,63779.0,0.080399]
[1727272902507,0.0124,63780.0,63779.0,0.080399]
[1727272903005,0.230798,63780.0,63779.0,0.080399]
[1727272904702,0.1524,63780.0,63779.0,0.080399]
[1727272904910,0.0124,63780.0,63779.0,0.080399]
[1727272905311,0.1524,63780.0,63779.0,0.080399]
[1727272905614,0.0124,63780.0,63779.0,0.158798]
[1727272905924,0.0124,63780.0,63779.0,0.080399]
[1727272906316,0.1524,63780.0,63779.0,0.080399]
[1727272910023,0.0124,63780.0,63779.0,0.080399]
[1727272910517,0.0124,63780.0,63779.0,0.144199]
[1727272911217,0.0124,63780.0,63779.0,0.222598]
[1727272911413,0.0124,63780.0,63779.0,0.144199]
[1727272911615,0.0124,63780.0,63779.0,0.222598]
[1727272911818,0.0124,63780.0,63779.0,0.144199]
[1727272917523,0.0124,63780.0,63779.0,0.222598]
[1727272918224,0.078389,63788.0,63787.0,0.078389]
[1727272918412,0.078389,63788.0,63787.0,0.078789]
[1727272919815,0.092389,63788.0,63787.0,0.079789]
[1727272921223,0.18620447,63788.0,63787.0,0.079789]
[1727272921428,0.29001111,63788.0,63787.0,0.0014]
[1727272921616,0.19619564,63788.0,63787.0,0.0014]
[1727272921811,0.19619564,63788.0,63779.0,0.001]
[1727272921812,0.078398,63780.0,63779.0,0.079399]
[1727272922022,0.24381564,63780.0,63779.0,0.079399]
[1727272922215,0.33816566,63780.0,63779.0,0.079399]
[1727272922414,0.24421564,63780.0,63779.0,0.078399]
[1727272922612,0.33816566,63780.0,63779.0,0.078399]
[1727272922813,0.19816566,63780.0,63779.0,0.078399]
[1727272923019,0.20416566,63780.0,63779.0,0.079399]
[1727272923323,0.12576766,63780.0,63779.0,0.079399]
[1727272923823,0.03181764,63780.0,63779.0,0.079399]
[1727272924333,0.11621564,63780.0,63779.0,0.080399]
[1727272925033,0.2101681,63780.0,63779.0,0.080399]
[1727272925618,0.21928664,63780.0,63779.0,0.080399]
[1727272925818,0.14088864,63780.0,63779.0,0.080399]
[1727272926344,0.09069587,63780.0,63779.0,0.158798]
[1727272926719,0.0124,63780.0,63779.0,0.158798]
[1727272927525,0.0124,63780.0,63779.0,0.237197]
[1727272928522,0.07503656,63780.0,63779.0,0.237197]
[1727272928718,0.0124,63780.0,63779.0,1.01289921]
[1727272928923,0.0124,63780.0,63779.0,1.48325921]
[1727272929222,0.0037,63789.0,63788.0,0.078388]
[1727272929429,0.07838,63795.0,63788.0,0.0004]
[1727272929430,0.14,63794.0,63788.0,0.0004]
[1727272929765,0.0037,63797.0,63790.0,0.14092677]
[1727272929946,0.0037,63800.0,63799.0,0.078375]
[1727272930122,0.078372,63802.0,63800.0,0.078373]
[1727272930330,0.14,63803.0,63802.0,0.078371]
[1727272930531,0.14,63803.0,63802.0,0.078771]
[1727272930731,0.14,63803.0,63802.0,0.078371]
[1727272932037,0.149,63803.0,63802.0,0.079371]
[1727272933837,0.22737,63803.0,63802.0,0.002]
[1727272934234,0.22737,63803.0,63796.0,0.0004]
[1727272934235,0.69757,63803.0,63796.0,0.0004]
[1727272934541,0.69757,63803.0,63788.0,0.0004]
[1727272934542,0.078378,63796.0,63789.0,0.082087]
[1727272934736,0.078378,63796.0,63789.0,0.078387]
[1727272934737,0.1404,63790.0,63789.0,0.078387]
[1727272934935,0.14,63790.0,63789.0,0.078387]
[1727272935238,0.078387,63789.0,63788.0,0.078788]
[1727272935424,0.200287,63789.0,63788.0,0.078788]
[1727272936333,0.200287,63789.0,63788.0,0.078388]
[1727272937432,0.206287,63789.0,63788.0,0.079388]
[1727272937743,0.216287,63789.0,63788.0,0.080388]
[1727272938631,0.1379,63789.0,63788.0,0.080388]
[1727272944244,0.0787,63789.0,63788.0,0.080388]
[1727272945662,0.0164,63789.0,63788.0,0.158776]
[1727272945966,0.0164,63789.0,63788.0,1.447484]
[1727272946161,0.0164,63789.0,63788.0,1.73723282]
[1727272946344,0.0037,63798.0,63796.0,0.156756]
[1727272946538,0.218366,63806.0,63796.0,0.517556]
[1727272946539,0.06263656,63804.0,63796.0,0.517556]
[1727272946734,0.0037,63805.0,63796.0,0.596334]
[1727272946958,0.0037,63808.0,63804.0,0.3608]
[1727272947148,0.1198,63809.0,63808.0,0.078364]
[1727272947447,0.06263656,63814.0,63808.0,0.0004]
[1727272947651,0.06263656,63814.0,63813.0,0.0004]
[1727272947948,0.006,63815.0,63814.0,0.078356]
[1727272948142,0.01528176,63815.0,63814.0,0.078756]
[1727272948343,0.006,63815.0,63814.0,0.078756]
[1727272949646,0.006,63815.0,63814.0,0.079756]
[1727272950037,0.006,63815.0,63814.0,0.078756]
[1727272950242,0.006,63815.0,63814.0,0.079756]
[1727272950544,0.006,63815.0,63814.0,0.080756]
[1727272950747,0.006,63815.0,63814.0,0.911676]
[1727272950951,0.0037,63822.0,63821.0,0.078348]
[1727272951147,0.0037,63830.0,63822.0,0.078346]
[1727272951447,0.0037,63835.0,63834.0,0.078332]
[1727272951659,0.14,63836.0,63834.0,0.079132]
[1727272951660,0.5008,63836.0,63834.0,0.079132]
[1727272951877,0.5008,63836.0,63835.0,0.0008]
[1727272952066,0.5008,63836.0,63834.0,0.079132]
[1727272952542,0.5008,63836.0,63834.0,0.0008]
[1727272952748,0.07833,63835.0,63834.0,0.0008]
[1727272953057,0.07833,63835.0,63834.0,0.0018]
[1727272953363,0.5016,63836.0,63834.0,0.0018]
[1727272953651,0.5016,63836.0,63835.0,0.0008]
[1727272953652,0.5008,63836.0,63835.0,0.0008]
[1727272954157,0.579129,63836.0,63835.0,0.0008]
[1727272954648,0.5008,63836.0,63835.0,0.07913]
[1727272955040,0.14,63840.0,63839.0,0.078325]
[1727272955359,0.14,63840.0,63839.0,0.079125]
[1727272955852,0.3608,63842.0,63841.0,0.078323]
[1727272956155,0.3608,63842.0,63841.0,0.079123]
[1727272957160,0.3608,63842.0,63841.0,0.080123]
[1727272957544,0.14,63844.0,63841.0,0.080123]
[1727272957545,0.14,63844.0,63843.0,0.078321]
[1727272957844,0.14,63844.0,63843.0,0.079121]
[1727272958244,0.062,63848.0,63843.0,0.079121]
[1727272958245,0.062,63848.0,63847.0,0.078316]
[1727272958553,0.14910924,63849.0,63848.0,0.078314]
[1727272958754,0.16539567,63849.0,63848.0,0.079114]
[1727272959354,0.21766437,63849.0,63848.0,0.079114]
[1727272959544,0.07766437,63849.0,63848.0,0.079114]
[1727272960039,0.07766437,63849.0,63848.0,0.081114]
[1727272960248,0.43846437,63850.0,63849.0,0.078313]
[1727272960455,0.3608,63850.0,63849.0,0.079113]
[1727272960963,0.42290667,63850.0,63849.0,0.079113]
[1727272961264,0.06210667,63854.0,63849.0,0.3616]
[1727272961644,0.06210667,63854.0,63853.0,0.079108]
[1727272962350,0.06210667,63855.0,63853.0,0.079108]
[1727272962652,0.06210667,63855.0,63854.0,0.0008]
[1727272963047,0.06210667,63855.0,63854.0,0.079107]
[1727272963248,0.078305,63856.0,63854.0,0.079107]
[1727272963557,0.06210667,63857.0,63854.0,0.079107]
[1727272963558,0.078306,63855.0,63854.0,0.0008]
[1727272963760,0.06210667,63857.0,63856.0,0.078305]
[1727272964059,0.0037,63863.0,63862.0,0.078297]
[1727272964261,0.14,63870.0,63864.0,0.078295]
[1727272964262,0.06210667,63865.0,63864.0,0.078295]
[1727272964448,0.07766437,63870.0,63864.0,0.079095]
[1727272964449,0.14,63869.0,63864.0,0.079095]
[1727272964643,0.14,63865.0,63864.0,0.0008]
[1727272966359,0.14,63869.0,63864.0,0.0008]
[1727272966656,0.14,63869.0,63868.0,0.0008]
[1727272969057,0.218289,63869.0,63868.0,0.0008]
[1727272969460,0.657378,63869.0,63868.0,0.002]
[1727272969656,0.156588,63865.0,63864.0,0.0008]
[1727272969959,0.078303,63857.0,63856.0,0.0037]
[1727272970155,0.078308,63853.0,63848.0,0.3608]
[1727272970862,0.5016,63857.0,63848.0,0.3608]
[1727272971051,0.579104,63857.0,63856.0,0.0018]
[1727272971249,0.3608,63857.0,63856.0,0.0018]
[1727272972255,0.00917127,63860.0,63856.0,0.0018]
[1727272972455,0.14,63861.0,63856.0,0.0018]
[1727272972755,0.14,63861.0,63854.0,0.3608]
[1727272972756,0.078302,63859.0,63854.0,0.3608]
[1727272973250,0.001,63857.0,63856.0,0.001]
[1727272973451,0.001,63857.0,63856.0,0.141]
[1727272973646,0.001,63857.0,63856.0,0.142]
[1727272974043,0.001,63859.0,63856.0,0.141]
[1727272974256,0.001,63859.0,63858.0,0.0008]
[1727272974867,0.002,63859.0,63858.0,0.0008]
[1727272975756,0.080301,63859.0,63858.0,0.0008]
[1727272976354,0.079301,63859.0,63858.0,0.0018]
[1727272976547,0.079301,63859.0,63858.0,0.0028]
[1727272977459,1.2108,63859.0,63844.0,0.0037]
[1727272977657,1.2108,63859.0,63828.0,0.36315]
[1727272977658,0.156644,63842.0,63841.0,0.0037]
[1727272977857,0.14,63842.0,63830.0,0.0608]
[1727272978059,0.078335,63831.0,63830.0,0.23906349]
[1727272978254,0.218335,63831.0,63830.0,0.0608]
[1727272978563,0.078338,63829.0,63828.0,0.00235]
[1727272979059,0.15600237,63829.0,63828.0,0.00235]
[1727272979259,0.078338,63829.0,63828.0,0.00235]
[1727272979558,0.18207784,63829.0,63828.0,0.00235]
[1727272979760,0.54287784,63829.0,63828.0,0.00235]
[1727272980266,0.54487784,63829.0,63828.0,0.00335]
[1727272980649,0.69406486,63829.0,63828.0,0.00335]
[1727272980964,0.10674138,63829.0,63828.0,0.00335]
[1727272981364,0.10674138,63829.0,63828.0,0.00435]
[1727272981365,0.10874138,63829.0,63828.0,0.00435]
[1727272981769,0.04414158,63829.0,63828.0,0.00435]
[1727272981954,0.40494158,63829.0,63828.0,0.00435]
[1727272982356,0.04414158,63829.0,63828.0,0.00435]
[1727272982665,0.05514158,63829.0,63828.0,0.00435]
[1727272983065,0.05514158,63829.0,63828.0,0.002]
[1727272983455,0.41694158,63829.0,63828.0,0.001]
[1727272983855,0.41694158,63829.0,63812.0,0.06214077]
[1727272983856,0.3778,63829.0,63812.0,0.06214077]
[1727272984067,0.078357,63813.0,63812.0,0.06214077]
[1727272984265,0.078359,63812.0,63810.0,0.06214077]
[1727272984568,0.078359,63812.0,63807.0,0.06214077]
[1727272984764,0.22,63815.0,63804.0,0.0549]
[1727272984765,0.078357,63813.0,63804.0,0.0549]
[1727272984963,0.078367,63805.0,63804.0,0.0549]
[1727272985171,0.22,63810.0,63802.0,0.3608]
[1727272985361,0.078375,63799.0,63798.0,0.06214077]
[1727272985686,0.078375,63799.0,63795.0,0.3608]
[1727272985687,0.22,63799.0,63795.0,0.3608]
[1727272985959,0.078375,63799.0,63795.0,0.3608]
[1727272986463,0.22,63804.0,63795.0,0.3608]
[1727272986765,0.298368,63804.0,63803.0,0.0008]
[1727272987463,0.078368,63804.0,63803.0,0.0008]
[1727272987978,0.3608,63807.0,63803.0,0.0008]
[1727272988262,0.3608,63807.0,63803.0,0.0018]
[1727272988460,0.078364,63808.0,63803.0,0.0038]
[1727272988656,0.078358,63813.0,63806.0,0.0008]